bitfinex-derivatives/quotes_SOLF0:USTF0_20250109
["timestamp","ask_amount","ask_price","bid_price","bid_amount"]
[1736451063892,22.82805664,188.07,187.9,19.57915664]
[1736451064093,22.82805664,188.07,188.0,2.6601]
[1736451064094,2.6598,188.03,188.0,2.6601]
[1736451064292,3.2489,188.07,188.0,2.6601]
[1736451064590,2.6597,188.04,188.0,2.6601]
[1736451064794,1.5709,188.08,188.02,2.6597]
[1736451064990,1.5709,188.08,187.94,1.5713]
[1736451065287,2.6597,188.04,188.0,2.66]
[1736451065492,1.5709,188.08,187.94,1.5713]
[1736451066288,1.5709,188.08,187.97,2.6605]
[1736451066289,2.6596,188.04,187.97,2.6605]
[1736451066587,1.5709,188.08,187.94,1.5713]
[1736451066785,2.90074,188.06,188.03,2.6597]
[1736451067196,2.90074,188.06,187.96,19.57915664]
[1736451067197,0.24144,188.06,187.96,19.57915664]
[1736451067389,0.24144,188.06,188.03,2.6596]
[1736451068393,2.6597,188.04,188.0,2.6601]
[1736451070189,0.24144,188.06,187.98,1.6193]
[1736451070494,19.57915664,188.1,187.98,1.6193]
[1736451071794,2.6597,188.04,188.0,2.66]
[1736451071996,2.6597,188.04,187.98,1.6193]
[1736451072197,19.57915664,188.1,187.98,1.6193]
[1736451072395,2.6594,188.06,188.02,2.6598]
[1736451072797,2.6594,188.06,187.98,1.6193]
[1736451073101,2.6594,188.06,188.03,2.6597]
[1736451073294,4.8,188.11,188.0,12.22169295]
[1736451073493,4.8,188.11,188.05,2.6594]
[1736451073697,2.6589,188.09,188.05,2.6594]
[1736451074297,12.22169295,188.12,188.0,12.22169295]
[1736451074491,12.22169295,188.12,187.98,1.6193]
[1736451074693,12.22169295,188.09,187.98,1.6193]
[1736451075001,12.22169295,188.09,188.03,2.6597]
[1736451075192,12.22169295,188.12,188.0,12.22169295]
[1736451075396,2.6589,188.09,188.0,12.22169295]
[1736451075898,12.22169295,188.12,188.0,12.22169295]
[1736451076503,2.6591,188.08,188.04,2.6596]
[1736451076798,12.22169295,188.12,188.0,12.22169295]
[1736451077105,12.49876295,188.16,188.03,12.22169295]
[1736451077607,2.6584,188.13,188.09,2.6589]
[1736451077998,12.49876295,188.16,188.01,4.8]
[1736451077999,0.27707,188.16,188.06,12.22169295]
[1736451078305,0.27707,188.16,188.12,2.6583]
[1736451078505,0.27707,188.16,188.09,12.22169295]
[1736451079009,0.27707,188.16,188.07,3.0888]
[1736451080405,0.27707,188.16,188.09,12.22169295]
[1736451080803,2.6582,188.14,188.09,14.88049295]
[1736451081004,2.6582,188.14,188.07,3.0888]
[1736451081203,0.27707,188.16,188.07,3.0888]
[1736451081505,12.22169295,188.15,188.05,5.68833029]
[1736451081701,12.22169295,188.12,188.05,5.68833029]
[1736451082316,13.76439295,188.15,188.05,5.68833029]
[1736451082511,2.6582,188.14,188.1,2.6586]
[1736451082709,0.27707,188.16,188.06,12.22169295]
[1736451082910,0.27707,188.16,188.09,12.22169295]
[1736451083112,0.27707,188.16,188.13,2.6583]
[1736451083315,0.27707,188.16,188.12,12.22169295]
[1736451083609,2.6584,188.13,188.09,14.88049295]
[1736451084015,2.6584,188.13,188.09,12.22169295]
[1736451084213,2.6582,188.14,188.09,12.22169295]
[1736451084417,0.27707,188.16,188.09,12.22169295]
[1736451084815,0.27707,188.16,188.06,12.22169295]
[1736451085513,2.659,188.09,188.05,8.34773029]
[1736451086017,12.22169295,188.12,188.05,5.68833029]
[1736451086214,1.6364,188.11,188.05,5.68833029]
[1736451087214,2.6593,188.06,188.05,5.68833029]
[1736451088507,2.6591,188.08,188.05,5.68833029]
[1736451088714,3.1342,188.14,188.05,5.68833029]
[1736451089117,3.1342,188.14,188.06,2.6592]
[1736451090110,3.1342,188.14,188.08,2.659]
[1736451090312,3.1342,188.14,188.05,5.68833029]
[1736451090508,2.6586,188.11,188.07,2.6591]
[1736451090713,4.8,188.15,188.06,19.56056409]
[1736451090913,3.1443,188.23,188.09,19.56056409]
[1736451091113,2.6577,188.18,188.13,2.6583]
[1736451091509,6.3935,188.22,188.13,2.6583]
[1736451091714,2.6578,188.17,188.13,2.6583]
[1736451092114,2.6578,188.17,188.1,4.7992]
[1736451092414,6.3935,188.22,188.1,4.7992]
[1736451093618,2.6577,188.18,188.1,4.7992]
[1736451093819,0.31285,188.25,188.12,19.56056409]
[1736451094119,2.6571,188.22,188.18,2.6576]
[1736451095210,0.31285,188.25,188.1,24.35976409]
[1736451095417,19.87341409,188.25,188.1,24.35976409]
[1736451095820,2.658,188.16,188.11,2.6586]
[1736451096318,2.658,188.16,188.1,24.35976409]
[1736451096521,19.87341409,188.25,188.1,24.35976409]
[1736451097022,19.87341409,188.25,188.12,2.6585]
[1736451097215,2.6579,188.17,188.1,24.35976409]
[1736451097722,2.6579,188.17,188.12,2.6583]
[1736451097921,19.87341409,188.25,188.12,2.6583]
[1736451098117,19.56056409,188.22,188.1,4.7992]
[1736451098321,1.5267,188.21,188.1,4.7992]
[1736451098621,4.82,188.2,188.07,19.56056409]
[1736451098821,4.82,188.2,188.09,2.6589]
[1736451099522,1.5267,188.21,188.09,2.6589]
[1736451099721,2.6579,188.16,188.12,2.6584]
[1736451099925,0.31285,188.25,188.1,19.56056409]
[1736451100222,0.31285,188.25,188.13,19.56056409]
[1736451100223,5.11285,188.25,188.13,19.56056409]
[1736451100413,5.11285,188.25,188.16,19.56056409]
[1736451100614,0.31285,188.25,188.16,19.56056409]
[1736451101013,0.31285,188.25,188.14,4.558]
[1736451101219,0.31285,188.25,188.16,2.6579]
[1736451101422,0.31285,188.25,188.14,4.558]
[1736451102517,0.31285,188.25,188.14,7.2161]
[1736451104225,0.31285,188.25,188.15,2.658]
[1736451104427,2.6576,188.19,188.15,2.658]
[1736451105126,1.5267,188.26,188.14,7.2161]
[1736451105828,2.6576,188.19,188.14,7.2161]
[1736451106024,1.5267,188.26,188.14,7.2161]
[1736451106224,0.83439233,188.25,188.14,7.2161]
[1736451106525,1.5267,188.26,188.14,7.2161]
[1736451106725,0.83439044,188.25,188.14,7.2161]
[1736451107027,20.39495453,188.25,188.07,19.56056409]
[1736451107327,0.83439044,188.24,188.08,1.5431]
[1736451107626,2.658,188.16,188.11,2.6585]
[1736451108426,2.6577,188.17,188.13,2.6583]
[1736451109121,8.09502176,188.24,188.1,19.56056409]
[1736451109628,1.5267,188.26,188.1,19.56056409]
[1736451109827,2.6576,188.19,188.14,2.6581]
[1736451110222,19.56056409,188.25,188.1,19.56056409]
[1736451110429,0.8340022,188.24,188.1,19.56056409]
[1736451110826,2.6576,188.18,188.1,19.56056409]
[1736451111029,8.09502176,188.25,188.1,19.56056409]
[1736451111529,1.5267,188.26,188.13,19.56056409]
[1736451111730,4.8,188.26,188.14,3.1488]
[1736451111927,2.6569,188.24,188.19,2.6574]
[1736451112129,8.09502176,188.27,188.17,19.56056409]
[1736451112526,4.82,188.28,188.17,19.56056409]
[1736451112726,4.82,188.28,188.2,2.6573]
[1736451113222,2.6565,188.26,188.22,2.657]
[1736451113428,8.09502176,188.3,188.17,19.56056409]
[1736451113629,0.83376384,188.29,188.15,1.6357]
[1736451114029,0.83376384,188.29,188.18,2.6576]
[1736451114734,0.83376384,188.29,188.15,1.6357]
[1736451114735,0.83376384,188.29,188.16,2.6578]
[1736451115035,19.56056409,188.27,188.14,3.1488]
[1736451115226,0.83376384,188.26,188.14,3.1488]
[1736451115422,4.82,188.25,188.14,3.1488]
[1736451115631,20.39432793,188.24,188.14,1.5981]
[1736451115930,2.6582,188.14,188.1,2.6586]
[1736451116330,19.56056409,188.21,188.09,3.2212]
[1736451116524,19.56056409,188.18,188.05,5.68833029]
[1736451116821,19.56056409,188.15,188.05,5.68833029]
[1736451117933,2.6588,188.1,188.05,5.68833029]
[1736451118133,4.82,188.17,188.05,5.68833029]
[1736451119034,4.82,188.22,188.1,19.56056409]
[1736451119233,4.82,188.22,188.11,3.2078]
[1736451119631,2.6579,188.16,188.12,2.6583]
[1736451119831,4.82,188.22,188.11,3.2078]
[1736451120538,2.6581,188.15,188.11,3.2078]
[1736451120839,19.56056409,188.21,188.05,5.68833029]
[1736451121036,0.83375714,188.2,188.06,1.5921]
[1736451121723,19.56056409,188.18,188.06,1.5921]
[1736451122127,2.6588,188.1,188.06,1.5921]
[1736451122925,2.6588,188.1,188.06,4.2514]
[1736451123136,2.6588,188.1,188.06,1.5921]
[1736451123939,2.6591,188.08,188.06,1.5921]
[1736451124133,4.84,188.15,188.06,1.5921]
[1736451124335,24.40056409,188.15,188.05,5.68833029]
[1736451124534,19.56056409,188.12,188.05,5.68833029]
[1736451124839,19.56056409,188.12,188.0,1.5635]
[1736451125339,2.6598,188.03,188.0,1.5635]
[1736451125934,19.56056409,188.12,188.0,1.5635]
[1736451126534,2.6596,188.04,188.0,1.5635]
[1736451127133,24.40056409,188.15,188.0,1.5635]
[1736451127431,4.84,188.14,188.01,19.56056409]
[1736451127837,2.659,188.09,188.04,2.6596]
[1736451128336,2.659,188.08,188.04,2.6596]
[1736451129033,2.659,188.08,188.03,2.6597]
[1736451129234,2.6592,188.07,188.03,2.6597]
[1736451129437,2.6592,188.07,188.0,1.5635]
[1736451129438,19.56056409,188.12,188.0,1.5635]
[1736451129633,2.6597,188.03,188.0,1.5635]
[1736451131239,4.84,188.14,188.0,1.5635]
[1736451131549,4.84,188.14,188.01,19.56056409]
[1736451132035,4.82,188.16,188.04,19.56056409]
[1736451132234,4.82,188.16,188.05,1.6351]
[1736451132437,1.4851,188.17,188.07,19.56056409]
[1736451132635,4.84,188.18,188.07,19.56056409]
[1736451132835,4.84,188.18,188.08,3.0051]
[1736451133340,4.82,188.21,188.08,3.0051]
[1736451133545,0.83286837,188.2,188.08,3.0051]
[1736451133743,1.6389,188.22,188.1,19.56056409]
[1736451133946,6.4789,188.22,188.1,19.56056409]
[1736451134344,2.6579,188.16,188.12,2.6584]
[1736451134547,6.4789,188.22,188.1,19.56056409]
[1736451134745,0.83296136,188.21,188.1,19.56056409]
[1736451135049,0.83296136,188.21,188.11,2.6586]
[1736451135642,0.83296136,188.21,188.08,3.0051]
[1736451135643,2.6578,188.17,188.12,2.6584]
[1736451135938,8.09626795,188.23,188.1,19.56056409]
[1736451136143,4.84,188.24,188.1,19.56056409]
[1736451136344,2.6573,188.2,188.15,2.6579]
[1736451137150,4.84,188.25,188.1,19.56056409]
[1736451137353,0.83300916,188.24,188.1,19.56056409]
[1736451137746,2.6573,188.2,188.11,2.6584]
[1736451138053,14.44259204,188.25,188.1,19.56056409]
[1736451138255,0.83308689,188.24,188.1,19.56056409]
[1736451138749,9.60259204,188.25,188.1,19.56056409]
[1736451139047,2.6572,188.21,188.16,2.6578]
[1736451139254,6.3253,188.25,188.16,2.6578]
[1736451140945,2.6573,188.21,188.13,19.56056409]
[1736451141146,2.6573,188.21,188.08,3.0051]
[1736451141147,0.32874,188.26,188.16,19.56056409]
[1736451141355,2.657,188.23,188.17,3.2452]
[1736451142054,2.657,188.23,188.18,2.6575]
[1736451143557,2.6572,188.22,188.18,2.6575]
[1736451143859,2.6572,188.22,188.17,3.2452]
[1736451143860,19.56056409,188.25,188.14,1.5592]
[1736451144051,0.83331696,188.24,188.14,1.5592]
[1736451144248,2.6581,188.15,188.1,2.6587]
[1736451145354,4.8,188.21,188.08,1.5371]
[1736451145650,19.56056409,188.19,188.07,1.5268]
[1736451145852,19.56056409,188.16,188.04,2.6596]
[1736451146053,19.56056409,188.16,188.03,5.68877647]
[1736451146249,2.6582,188.15,188.03,5.68877647]
[1736451146456,27.64840501,188.19,188.06,2.6592]
[1736451146758,27.64840501,188.19,188.04,19.56056409]
[1736451146950,2.6581,188.15,188.1,2.6587]
[1736451147346,2.6579,188.17,188.07,19.56056409]
[1736451147546,2.6579,188.17,188.12,2.6584]
[1736451148458,1.6274,188.2,188.1,2.6587]
[1736451148756,1.6274,188.2,188.07,19.56056409]
[1736451149252,2.6581,188.15,188.11,2.6586]
[1736451149453,1.6274,188.2,188.07,19.56056409]
[1736451149653,4.8,188.21,188.1,19.56056409]
[1736451149846,4.8,188.21,188.11,4.7066]
[1736451150558,2.6578,188.18,188.11,4.7066]
[1736451150759,4.8,188.21,188.11,4.7066]
[1736451151762,2.658,188.16,188.11,7.3652]
[1736451152656,2.6576,188.18,188.11,4.7066]
[1736451152859,4.82,188.26,188.13,19.56056409]
[1736451153260,2.6572,188.21,188.17,2.6578]
[1736451153460,6.3527,188.27,188.13,19.56056409]
[1736451153653,0.83302055,188.26,188.13,19.56056409]
[1736451154064,0.83302055,188.26,188.16,2.6579]
[1736451154343,6.3527,188.27,188.16,2.6579]
[1736451154553,0.8334719,188.26,188.16,2.6579]
[1736451154759,2.6573,188.21,188.16,2.6579]
[1736451155360,2.6571,188.22,188.18,2.6576]
[1736451155561,4.82,188.27,188.16,19.56056409]
[1736451155859,4.82,188.27,188.19,2.6574]
[1736451155860,2.6569,188.24,188.19,2.6574]
[1736451156261,4.82,188.27,188.19,2.6574]
[1736451157355,9.58349715,188.3,188.19,2.6574]
[1736451157556,5.65389961,188.29,188.19,2.6574]
[1736451157755,0.83389961,188.28,188.19,2.6574]
[1736451158158,0.83389961,188.28,188.16,22.21836409]
[1736451158359,20.3944637,188.28,188.16,2.6578]
[1736451158562,0.83389961,188.27,188.16,2.6578]
[1736451158965,0.83389961,188.27,188.13,19.56056409]
[1736451159663,19.56056409,188.25,188.11,4.7066]
[1736451159863,0.83389961,188.24,188.11,4.7066]
[1736451160059,2.6583,188.13,188.11,3.1843]
[1736451160266,2.6583,188.13,188.07,19.56056409]
[1736451160461,7.8703,188.21,188.07,19.56056409]
[1736451160868,2.6581,188.15,188.1,2.6587]
[1736451161569,4.82,188.21,188.1,19.56056409]
[1736451162471,2.6577,188.18,188.14,2.6582]
[1736451163267,4.82,188.21,188.14,2.6582]
[1736451163474,2.6578,188.17,188.14,2.6582]
[1736451163676,2.6578,188.17,188.1,19.56056409]
[1736451163876,4.82,188.21,188.07,19.56056409]
[1736451164471,2.6581,188.15,188.11,2.6586]
[1736451165875,4.82,188.21,188.07,19.56056409]
[1736451165876,2.6578,188.17,188.13,2.6583]
[1736451166173,4.82,188.21,188.13,19.56056409]
[1736451166374,2.6574,188.2,188.13,19.56056409]
[1736451166875,2.6574,188.2,188.14,1.5]
[1736451167183,2.6572,188.21,188.14,1.5]
[1736451167480,2.6572,188.21,188.16,19.56056409]
[1736451167673,2.6569,188.24,188.16,19.56056409]
[1736451167868,3.0809,188.31,188.19,19.56056409]
[1736451168074,0.83448579,188.3,188.23,2.6569]
[1736451168276,3.0809,188.31,188.23,2.6569]
[1736451168468,2.6565,188.27,188.19,19.56056409]
[1736451168674,3.0809,188.31,188.19,19.56056409]
[1736451168876,0.83458712,188.3,188.19,19.56056409]
[1736451169073,2.6564,188.27,188.19,19.56056409]
[1736451169277,2.6564,188.27,188.22,2.6569]
[1736451170473,8.10859073,188.32,188.23,2.6568]
[1736451170679,8.10859073,188.32,188.17,4.82]
[1736451170680,0.83461851,188.31,188.22,19.56056409]
[1736451170871,0.35455,188.33,188.22,19.56056409]
[1736451171078,0.83471274,188.32,188.22,19.56056409]
[1736451171379,0.35455,188.33,188.19,19.56056409]
[1736451171569,0.83471171,188.32,188.19,19.56056409]
[1736451171769,2.6565,188.27,188.22,2.6571]
[1736451171983,0.35455,188.33,188.19,19.56056409]
[1736451172182,0.83476658,188.32,188.19,19.56056409]
[1736451172781,2.6567,188.25,188.21,2.6572]
[1736451172982,2.6567,188.25,188.19,19.56056409]
[1736451173682,2.6568,188.24,188.19,19.56056409]
[1736451173983,2.6568,188.24,188.2,2.6573]
[1736451174483,19.56056409,188.31,188.17,4.82]
[1736451174684,2.46664128,188.3,188.16,19.56056409]
[1736451174878,0.83429367,188.29,188.16,19.56056409]
[1736451175182,4.82,188.28,188.18,2.6576]
[1736451176485,4.82,188.28,188.16,19.56056409]
[1736451176686,4.82,188.28,188.19,2.6575]
[1736451177182,2.6571,188.22,188.19,2.6575]
[1736451178379,2.6574,188.2,188.16,22.21836409]
[1736451178585,2.6574,188.2,188.16,2.6578]
[1736451178887,2.6574,188.2,188.15,1.5251]
[1736451180085,2.6574,188.2,188.17,2.6577]
[1736451180787,2.6575,188.19,188.16,2.6579]
[1736451181986,19.56056409,188.25,188.14,1.5]
[1736451182181,19.56056409,188.25,188.1,19.56056409]
[1736451182385,0.83330503,188.24,188.08,4.8048]
[1736451182686,2.6585,188.13,188.08,4.8048]
[1736451182888,4.8,188.2,188.08,4.8048]
[1736451183691,4.8,188.2,188.09,2.6588]
[1736451184291,4.8,188.2,188.08,4.8048]
[1736451184985,2.6579,188.17,188.12,2.6583]
[1736451185190,4.8,188.2,188.1,19.56056409]
[1736451185792,2.6577,188.18,188.13,2.6583]
[1736451185987,4.8,188.2,188.1,19.56056409]
[1736451186191,4.8,188.2,188.08,4.8048]
[1736451186385,2.6579,188.17,188.09,2.6589]
[1736451186589,4.8,188.2,188.09,2.6589]
[1736451186793,4.8,188.2,188.08,4.8048]
[1736451186988,20.39377928,188.19,188.08,1.6245]
[1736451187292,27.67237967,188.19,188.04,19.56056409]
[1736451187492,27.67237967,188.19,188.05,1.5031]
[1736451187794,2.6586,188.12,188.08,2.659]
[1736451188183,1.5406,188.18,188.08,2.659]
[1736451188388,1.5406,188.18,188.05,1.5031]
[1736451188588,1.5406,188.18,188.09,2.6589]
[1736451188989,1.5406,188.18,188.05,1.5031]
[1736451189193,1.5406,188.18,188.11,2.6586]
[1736451189194,2.6582,188.14,188.11,2.6586]
[1736451189393,1.5406,188.18,188.05,1.5031]
[1736451190395,1.5406,188.18,188.07,19.56056409]
[1736451191097,4.8,188.2,188.1,19.56056409]
[1736451191391,4.8,188.2,188.05,1.5031]
[1736451191392,4.84,188.25,188.13,19.56056409]
[1736451191589,4.84,188.25,188.14,1.5003]
[1736451191590,0.83350256,188.24,188.14,1.5003]
[1736451191892,4.84,188.25,188.14,1.5003]
[1736451192095,2.6576,188.19,188.14,4.1584]
[1736451192298,2.6576,188.19,188.14,1.5003]
[1736451192890,24.40056409,188.25,188.11,3.1553]
[1736451193096,19.56056409,188.19,188.08,1.6299]
[1736451193285,4.84,188.18,188.09,2.6588]
[1736451193487,2.6583,188.14,188.08,1.6299]
[1736451193893,4.84,188.18,188.1,2.6588]
[1736451194089,2.6584,188.13,188.1,2.6588]
[1736451194594,4.84,188.18,188.08,1.6299]
[1736451194897,2.6586,188.12,188.08,1.6299]
[1736451195192,4.84,188.18,188.08,1.6299]
[1736451195395,4.84,188.18,188.08,4.2889]
[1736451195894,4.84,188.18,188.08,1.6299]
[1736451196094,4.84,188.18,188.1,2.6588]
[1736451196396,4.84,188.18,188.08,1.6299]
[1736451197394,6.38,188.18,188.05,1.6084]
[1736451197596,2.6588,188.1,188.06,2.6592]
[1736451197795,1.5828,188.17,188.05,1.6084]
[1736451198195,2.6587,188.11,188.07,2.6592]
[1736451198396,1.5828,188.17,188.07,2.6592]
[1736451198796,2.6587,188.11,188.07,2.6592]
[1736451199195,2.659,188.09,188.05,4.2677]
[1736451199500,19.56056409,188.16,188.03,7.32837647]
[1736451199801,0.83276522,188.15,188.03,7.32837647]
[1736451200008,2.6592,188.07,188.04,2.6595]
[1736451200195,19.56056409,188.16,188.03,5.68877647]
[1736451200698,0.83286778,188.15,188.03,5.68877647]
[1736451201104,27.65913124,188.16,188.03,5.68877647]
[1736451201303,27.65913124,188.16,188.03,8.34847647]
[1736451201698,2.6592,188.08,188.03,8.34847647]
[1736451202903,2.6585,188.13,188.05,2.6594]
[1736451203107,19.56056409,188.16,188.05,2.6594]
[1736451203504,0.83248513,188.15,188.03,8.34837647]
[1736451203709,0.83248513,188.15,188.03,5.68877647]
[1736451204204,2.6592,188.08,188.03,8.34837647]
[1736451204605,4.8,188.16,188.04,19.56056409]
[1736451205013,4.8,188.16,188.05,1.5663]
[1736451206708,24.36056409,188.16,188.03,5.68877647]
[1736451206909,2.6594,188.06,188.03,5.68877647]
[1736451207911,2.6594,188.06,188.03,8.34847647]
[1736451210014,2.6596,188.04,188.03,5.68877647]
[1736451210912,12.22174954,188.13,188.03,5.68877647]
[1736451211313,2.6596,188.04,188.03,5.68877647]
[1736451211511,12.22174954,188.1,187.98,16.44844954]
[1736451211712,4.8,188.09,187.98,16.44844954]
[1736451211912,2.6599,188.02,187.98,16.44844954]
[1736451212106,12.22174954,188.07,187.98,1.5663]
[1736451212313,12.22174954,188.07,187.95,13.86284954]
[1736451212916,2.6595,188.05,187.98,12.22174954]
[1736451213114,1.585,188.08,187.98,12.22174954]
[1736451213418,2.6599,188.03,187.99,2.6603]
[1736451215008,2.6599,188.03,188.0,2.6601]
[1736451216918,12.22174954,188.05,187.95,1.6411]
[1736451217411,2.6604,187.99,187.95,4.3019]
[1736451217608,12.22174954,188.05,187.95,1.6411]
[1736451217814,3.1309,188.07,187.95,13.86284954]
[1736451218112,2.6598,188.03,187.99,2.6602]
[1736451218816,3.1309,188.07,188.0,2.6601]
[1736451219317,3.1309,188.07,187.95,13.86284954]
[1736451219513,2.6599,188.03,187.99,2.6602]
[1736451219720,1.585,188.08,187.98,12.22174954]
[1736451220120,13.80674954,188.08,187.98,12.22174954]
[1736451220321,18.60674954,188.08,187.95,13.86284954]
[1736451220820,2.66,188.02,187.98,2.6605]
[1736451222017,13.80674954,188.08,187.95,13.86284954]
[1736451222221,18.60674954,188.08,187.98,12.22174954]
[1736451222719,2.6597,188.04,187.98,12.22174954]
[1736451223520,12.22174954,188.11,187.98,12.22174954]
[1736451223721,2.6593,188.06,187.98,12.22174954]
[1736451225029,2.6595,188.05,188.02,2.6598]
[1736451225732,2.6599,188.03,188.0,2.6602]
[1736451225923,12.22174954,188.11,187.98,12.22174954]
[1736451226324,2.6597,188.04,188.0,2.66]
[1736451227428,12.22174954,188.11,188.0,2.66]
[1736451227629,2.6598,188.03,188.0,2.66]
[1736451229138,2.6595,188.05,188.02,2.6599]
[1736451229724,12.22174954,188.11,188.02,2.6599]
[1736451229924,2.6594,188.06,188.02,2.6599]
[1736451230729,2.6594,188.06,188.03,2.6597]
[1736451231332,2.6594,188.06,188.02,2.6598]
[1736451234238,2.6595,188.06,188.02,2.6598]
[1736451234437,12.22174954,188.11,188.02,2.6598]
[1736451236137,2.6595,188.05,188.02,2.6598]
[1736451240339,12.22174954,188.11,187.98,12.22174954]
[1736451240546,12.22174954,188.08,187.95,1.6411]
[1736451240735,12.22174954,188.04,187.95,1.6411]
[1736451241131,12.22174954,188.04,187.95,4.3019]
[1736451241440,4.8,188.05,187.95,13.86284954]
[1736451241837,2.6601,188.01,187.98,2.6604]
[1736451242037,2.6601,188.01,187.95,13.86284954]
[1736451242441,2.6601,188.01,187.97,2.6605]
[1736451243441,4.8,188.05,187.95,14.88254954]
[1736451244042,2.6604,187.99,187.95,14.88254954]
[1736451244242,2.6604,187.99,187.95,2.6608]
[1736451244737,12.22174954,188.04,187.93,1.6231]
[1736451244933,12.22174954,188.04,187.92,14.88294954]
[1736451245541,12.22174954,188.01,187.92,2.6612]
[1736451245739,2.6607,187.97,187.93,2.6611]
[1736451246342,2.6608,187.96,187.91,1.6162]
[1736451246542,2.6608,187.96,187.92,2.6613]
[1736451247443,2.6608,187.96,187.93,2.6611]
[1736451247643,2.6608,187.96,187.91,1.6162]
[1736451247844,2.6609,187.95,187.91,1.6162]
[1736451248248,12.22174954,188.01,187.9,1.4937]
[1736451248444,12.22174954,187.98,187.88,1.5355]
[1736451248744,17.02174954,187.98,187.88,1.5355]
[1736451249246,4.8,187.98,187.88,1.5355]
[1736451249446,4.8,187.98,187.9,2.6615]
[1736451249447,2.661,187.94,187.9,2.6615]
[1736451249839,4.8,187.98,187.88,1.5355]
[1736451250147,2.6613,187.93,187.89,2.6617]
[1736451251049,12.22174954,187.96,187.85,3.0117]
[1736451251845,2.6617,187.89,187.85,5.6739]
[1736451252849,2.6619,187.88,187.85,5.6739]
[1736451253047,2.6619,187.88,187.85,3.0117]
[1736451253242,2.6621,187.87,187.84,5.69469649]
[1736451253542,12.22174954,187.93,187.84,5.69469649]
[1736451254239,2.6621,187.87,187.84,5.69469649]
[1736451256945,12.22174954,187.96,187.84,17.91644603]
[1736451257543,12.22174954,187.93,187.84,5.69469649]
[1736451257739,12.22174954,187.9,187.84,5.69469649]
[1736451257945,12.22174954,187.87,187.71,58.95754651]
[1736451258258,12.22174954,187.84,187.73,10.00396105]
[1736451258440,17.02174954,187.84,187.73,2.6639]
[1736451258949,2.6633,187.79,187.74,2.6638]
[1736451259552,17.02174954,187.84,187.71,13.72014954]
[1736451259753,2.663,187.81,187.73,2.664]
[1736451259948,17.02174954,187.84,187.73,2.664]
[1736451260248,17.02174954,187.84,187.71,13.72014954]
[1736451260449,2.6635,187.77,187.72,2.664]
[1736451261256,2.6636,187.76,187.72,2.664]
[1736451261749,17.02174954,187.84,187.69,3.0592]
[1736451261750,12.22174954,187.81,187.69,2.6645]
[1736451261944,1.5528,187.8,187.69,2.6645]
[1736451262146,2.6642,187.72,187.67,12.22174954]
[1736451262348,2.6642,187.72,187.67,14.88644954]
[1736451262752,2.6638,187.75,187.67,12.22174954]
[1736451262955,12.22174954,187.81,187.7,12.22174954]
[1736451263546,12.22174954,187.81,187.71,2.6643]
[1736451263948,2.6636,187.76,187.7,12.22174954]
[1736451264145,17.02174954,187.84,187.7,12.22174954]
[1736451264353,4.8,187.84,187.73,12.22174954]
[1736451264547,2.6628,187.82,187.77,2.6633]
[1736451265354,2.6624,187.84,187.76,12.22174954]
[1736451265550,1.5007,187.9,187.79,12.22174954]
[1736451265743,4.8,187.92,187.79,12.22174954]
[1736451265949,4.8,187.92,187.82,12.22174954]
[1736451266652,2.6617,187.89,187.84,2.6623]
[1736451266849,4.8,187.92,187.79,12.22174954]
[1736451267055,4.8,187.92,187.8,1.5074]
[1736451267360,4.8,187.92,187.82,2.6624]
[1736451267855,4.8,187.92,187.81,1.5519]
[1736451268157,4.8,187.92,187.82,12.22174954]
[1736451269050,2.6615,187.9,187.85,2.6621]
[1736451269256,4.8,187.92,187.82,12.22174954]
[1736451269749,12.22174954,187.96,187.82,12.22174954]
[1736451270052,12.22174954,187.96,187.85,12.22174954]
[1736451270253,2.6615,187.9,187.85,2.6621]
[1736451270654,12.22174954,187.96,187.85,2.6621]
[1736451271266,12.22174954,187.96,187.82,12.22174954]